bitfinex-derivatives/quotes_ETHF0:USTF0_20240927
["timestamp","ask_amount","ask_price","bid_price","bid_amount"]
[1727450595134,3.5788,2693.8,2693.2,1.72222]
[1727450595341,0.371,2693.8,2693.7,0.3711]
[1727450595536,0.37107,2694.0,2693.9,0.37107]
[1727450595731,0.3738,2694.1,2694.0,0.37106]
[1727450596037,0.37104,2694.2,2694.1,0.37105]
[1727450596230,0.37104,2694.2,2693.9,0.92769]
[1727450596231,0.37106,2694.1,2694.0,0.37105]
[1727450596433,3.57886,2694.1,2694.0,0.37105]
[1727450596631,0.37106,2694.1,2694.0,0.37105]
[1727450597332,0.37106,2694.1,2694.0,0.74125]
[1727450598637,3.2078,2694.4,2694.2,0.37103]
[1727450598839,0.37101,2694.5,2694.4,0.37099]
[1727450599044,0.92739,2694.8,2694.0,7.40564]
[1727450599045,3.2078,2694.6,2694.0,7.40564]
[1727450599242,3.2078,2694.6,2694.3,0.37101]
[1727450599243,0.37101,2694.4,2694.3,0.37101]
[1727450599744,0.37101,2694.4,2694.2,0.37103]
[1727450600647,0.37105,2694.2,2694.0,0.3702]
[1727450601140,0.7583,2694.3,2694.0,0.74126]
[1727450601141,4.33713,2694.3,2694.0,0.74126]
[1727450601540,0.37104,2694.2,2694.0,0.3702]
[1727450601943,1.12933,2694.3,2694.0,0.74126]
[1727450602144,0.7583,2694.3,2694.0,0.3702]
[1727450602344,0.37105,2694.1,2694.0,0.3702]
[1727450603537,0.37105,2694.1,2693.7,3.2078]
[1727450603738,0.37112,2693.6,2693.5,0.395]
[1727450603951,0.37111,2693.7,2693.5,0.395]
[1727450604148,0.77781,2693.7,2693.5,0.395]
[1727450604450,0.37112,2693.6,2693.5,0.395]
[1727450604847,0.37112,2693.6,2693.5,3.6028]
[1727450605048,0.7778,2693.7,2693.5,0.76613]
[1727450605252,0.7778,2693.7,2693.3,0.3793]
[1727450605253,0.4067,2693.7,2693.3,0.3793]
[1727450605451,3.98561,2693.7,2693.4,0.37114]
[1727450605751,0.4067,2693.7,2693.6,0.37112]
[1727450605948,0.76277,2694.0,2693.8,0.37108]
[1727450606246,0.76277,2694.0,2693.7,0.37109]
[1727450606247,0.37108,2693.9,2693.7,0.37109]
[1727450606447,3.9806,2694.0,2693.4,2.9]
[1727450606647,0.37108,2693.9,2693.4,2.9]
[1727450607056,0.37108,2693.9,2693.7,0.3711]
[1727450607250,0.37108,2693.9,2693.4,2.9]
[1727450607454,0.37109,2693.8,2693.6,0.37111]
[1727450607656,0.37111,2693.7,2693.5,0.37112]
[1727450607849,0.37111,2693.7,2693.6,3.2078]
[1727450608049,0.3711,2693.8,2693.6,0.37111]
[1727450608251,0.3711,2693.8,2693.5,0.37112]
[1727450608449,0.37111,2693.7,2693.5,0.37112]
[1727450608648,0.7728,2694.0,2693.3,0.3793]
[1727450608952,0.37114,2693.4,2693.3,0.3793]
[1727450609154,1.32331,2693.6,2693.3,0.3793]
[1727450609356,0.7547,2693.5,2693.3,0.3793]
[1727450609659,0.37114,2693.4,2693.3,0.3793]
[1727450610455,0.3696,2693.5,2693.4,0.37114]
[1727450612760,0.3746,2693.8,2693.4,2.9]
[1727450612960,0.3746,2693.8,2693.7,0.3711]
[1727450613553,0.3746,2693.8,2693.6,3.2078]
[1727450613753,0.37111,2693.7,2693.3,3.613]
[1727450614063,0.37111,2693.7,2693.5,0.37112]
[1727450614656,0.3746,2693.8,2693.6,0.37112]
[1727450614657,0.7457,2693.8,2693.6,0.37112]
[1727450614857,0.37111,2693.7,2693.5,0.37112]
[1727450615158,0.37112,2693.6,2693.4,0.37113]
[1727450615552,0.4048,2693.5,2693.4,0.37113]
[1727450615958,0.3746,2693.8,2693.7,0.3711]
[1727450616155,4.86249,2693.8,2693.6,0.37111]
[1727450616355,0.7794,2693.8,2693.7,0.3711]
[1727450616656,0.7794,2693.8,2693.7,1.1443]
[1727450618060,0.4048,2693.8,2693.7,1.1443]
[1727450619357,0.4048,2693.8,2693.7,0.7495]
[1727450622866,0.4048,2693.8,2693.7,0.3711]
[1727450623751,0.4048,2693.8,2693.6,3.2078]
[1727450623752,4.1168,2693.8,2693.6,3.2078]
[1727450623957,3.2711,2693.7,2693.6,3.2078]
[1727450624266,0.7759,2693.8,2693.6,0.37111]
[1727450624465,0.4048,2693.8,2693.3,3.6184]
[1727450624678,0.4048,2693.8,2693.7,0.3711]
[1727450625665,0.3955,2693.9,2693.8,0.37109]
[1727450628464,0.3955,2693.9,2693.7,0.74809]
[1727450628668,0.3955,2693.9,2693.6,3.2078]
[1727450628859,0.3955,2693.9,2693.6,3.57891]
[1727450628860,0.3711,2693.7,2693.6,3.57891]
[1727450629167,0.3711,2693.7,2693.6,0.37111]
[1727450630074,4.64056,2693.7,2693.3,3.2078]
[1727450630263,4.64056,2693.7,2693.2,0.97086444]
[1727450630264,7.8017,2693.6,2693.2,0.76657]
[1727450630577,0.37116,2693.3,2693.2,0.76657]
[1727450630758,0.37116,2693.3,2693.2,0.3954]
[1727450631067,0.7661,2693.6,2693.2,0.3954]
[1727450631265,1.13722,2693.6,2693.4,0.37114]
[1727450631671,0.7661,2693.6,2693.4,0.37114]
[1727450631869,1.13722,2693.6,2693.4,0.37114]
[1727450632666,0.37113,2693.5,2693.3,3.57895]
[1727450632863,1.13722,2693.6,2693.4,0.37114]
[1727450633264,1.13722,2693.6,2693.5,0.37113]
[1727450633974,1.32322,2693.9,2693.4,0.92785]
[1727450633975,0.76658,2693.9,2693.4,0.92785]
[1727450634169,1.54438,2693.9,2693.4,0.92785]
[1727450634364,0.37109,2693.8,2693.4,0.92785]
[1727450634571,0.37109,2693.8,2693.6,0.3711]
[1727450634873,0.37109,2693.8,2693.7,0.3711]
[1727450635369,4.08309,2693.8,2693.7,0.3711]
[1727450635666,3.712,2693.8,2693.7,0.3711]
[1727450635873,1.1733,2693.9,2693.8,0.37109]
[1727450636875,4.8853,2693.9,2693.6,3.2078]
[1727450637062,1.54438,2693.9,2693.7,0.37109]
[1727450637263,1.54438,2693.9,2693.6,3.57891]
[1727450637264,0.3711,2693.8,2693.6,3.57891]
[1727450637874,1.54438,2693.9,2693.7,0.3711]
[1727450638066,0.37109,2693.8,2693.7,0.3711]
[1727450638268,3.5789,2693.8,2693.4,0.4032]
[1727450638471,3.2078,2693.8,2693.5,0.37113]
[1727450638673,0.37111,2693.7,2693.5,0.37113]
[1727450639177,6.1078,2693.8,2693.3,1.34766444]
[1727450639362,6.1078,2693.8,2693.3,0.3768]
[1727450639567,0.37112,2693.6,2693.3,0.3768]
[1727450639764,8.04751849,2693.8,2693.4,0.37113]
[1727450639765,0.37111,2693.7,2693.4,0.37113]
[1727450639963,3.10539849,2693.9,2693.7,0.3711]
[1727450640166,3.11861849,2693.9,2693.8,0.37109]
[1727450640363,1.1789,2693.9,2693.8,0.37109]
[1727450640573,4.8909,2693.9,2693.8,0.37109]
[1727450640770,5.26198,2693.9,2693.7,0.3711]
[1727450640975,1.1789,2693.9,2693.8,0.37109]
[1727450641469,0.37109,2693.8,2693.6,0.37112]
[1727450641677,4.8909,2693.9,2693.5,3.2078]
[1727450641678,1.1789,2693.9,2693.5,3.2078]
[1727450641872,2.10661,2693.9,2693.5,0.37112]
[1727450642075,4.04632849,2693.9,2693.5,0.37112]
[1727450642374,0.37113,2693.6,2693.5,3.2078]
[1727450642569,0.37113,2693.6,2693.3,0.97086444]
[1727450642570,2.9,2693.6,2693.3,0.97086444]
[1727450642873,0.37114,2693.4,2693.2,4.95292444]
[1727450643079,0.7768,2693.3,2693.2,3.98206]
[1727450643677,0.4044,2693.5,2693.4,0.37114]
[1727450644768,0.4044,2693.5,2693.4,1.34200444]
[1727450645068,0.4044,2693.5,2693.4,0.37114]
[1727450645368,2.31078849,2694.0,2693.7,0.37109]
[1727450645569,3.10578849,2694.0,2693.5,3.2078]
[1727450645768,2.73471849,2694.0,2693.6,0.3732]
[1727450645963,3.10577849,2694.0,2693.6,0.7465]
[1727450646163,0.37107,2693.9,2693.6,0.37111]
[1727450646369,2.73471849,2694.0,2693.5,3.2078]
[1727450646580,0.795,2694.0,2693.9,0.37107]
[1727450647071,6.44671849,2694.0,2693.9,0.37107]
[1727450647273,0.3757,2694.1,2694.0,0.37106]
[1727450647486,3.10661849,2694.4,2694.2,0.37103]
[1727450647664,3.10661849,2694.4,2694.3,0.37102]
[1727450647869,0.4053,2694.4,2694.3,0.37102]
[1727450648070,5.53341849,2694.6,2694.5,0.37099]
[1727450648281,5.93871849,2694.6,2694.5,0.37099]
[1727450648475,7.7102,2694.6,2694.5,0.37099]
[1727450648674,7.7102,2694.6,2694.1,5.10627444]
[1727450648675,15.64991849,2694.6,2694.1,4.17866444]
[1727450648872,0.37103,2694.2,2693.9,0.4009]
[1727450649076,1.1825,2694.1,2694.0,0.37106]
[1727450650083,5.51853849,2694.3,2694.2,0.37103]
[1727450650374,1.1798,2694.4,2694.0,3.2078]
[1727450650580,0.3819,2694.4,2694.3,0.37102]
[1727450651172,0.37098,2694.6,2694.5,0.37099]
[1727450651379,4.0931,2694.6,2694.5,0.37099]
[1727450651678,0.3819,2694.6,2694.5,0.37099]
[1727450654988,0.3819,2694.6,2694.3,3.6142]
[1727450655272,0.3819,2694.6,2694.4,0.371]
[1727450655479,0.75288,2694.6,2694.3,3.98521]
[1727450655779,7.53869,2694.5,2693.8,0.97086444]
[1727450655983,0.9276,2694.2,2693.7,3.5929]
[1727450656185,0.37107,2694.0,2693.7,0.7562]
[1727450656380,1.1833,2694.1,2693.9,3.2078]
[1727450656693,1.1833,2694.1,2693.9,3.57887]
[1727450657580,1.1833,2694.1,2694.0,0.37106]
[1727450658183,4.8953,2694.1,2693.7,0.3851]
[1727450658393,2.9,2693.8,2693.4,0.97086444]
[1727450658682,2.9,2693.8,2693.4,0.37114]
[1727450658882,0.76131,2693.7,2693.4,0.37114]
[1727450659183,0.76131,2693.7,2693.4,3.2078]
[1727450659380,0.37113,2693.5,2693.4,3.2078]
[1727450659777,0.75993,2693.5,2693.2,1.15996079]
[1727450659978,0.3888,2693.5,2693.2,1.15996079]
[1727450660487,3.27116,2693.3,2693.2,0.41170079]
[1727450660691,0.37122,2692.9,2692.6,0.97086444]
[1727450660987,3.27124,2692.7,2692.3,3.9536]
[1727450661290,3.2748,2692.6,2692.3,1.11709]
[1727450661692,3.64606,2692.6,2692.0,4.17866444]
[1727450661986,2.9,2692.4,2692.0,0.37133]
[1727450662186,0.3713,2692.3,2692.1,3.2078]
[1727450662387,3.27129,2692.4,2691.9,0.74265]
[1727450662586,2.9,2692.4,2691.9,0.3713]
[1727450662896,0.3713,2692.3,2691.9,0.3713]
[1727450663190,3.27129,2692.4,2691.9,0.74265]
[1727450663690,0.3713,2692.3,2691.9,0.3713]
[1727450663884,2.9,2692.0,2691.8,3.2078]
[1727450665189,0.3837,2692.1,2691.8,3.57915]
[1727450665488,6.6144,2692.0,2691.8,3.2078]
[1727450665787,6.6144,2692.0,2691.4,0.3729]
[1727450665788,0.37135,2691.9,2691.4,0.3729]
[1727450665983,2.9,2691.8,2691.4,0.74432]
[1727450666384,2.9,2691.5,2691.2,3.2078]
[1727450666687,2.9,2691.5,2690.9,3.2078]
[1727450666891,3.2078,2691.7,2690.9,3.2078]
[1727450666892,2.9,2691.3,2690.9,3.2078]
[1727450667487,2.9,2691.3,2690.9,3.57929]
[1727450667691,0.7833,2691.4,2690.9,3.57929]
[1727450668088,2.9,2691.3,2691.2,3.2078]
[1727450668394,0.087,2692.2,2691.4,0.37142]
[1727450668589,0.087,2692.2,2691.2,3.2078]
[1727450668590,0.7749,2692.1,2691.6,3.2078]
[1727450668792,0.7749,2692.1,2691.6,3.57919]
[1727450668992,2.9,2692.0,2691.6,3.57919]
[1727450669298,0.7749,2692.1,2691.9,3.2078]
[1727450670188,2.9,2692.5,2691.9,3.2078]
[1727450670495,0.32633185,2692.6,2692.3,0.37129]
[1727450670496,0.7749,2692.6,2692.3,0.37129]
[1727450670685,0.7749,2692.6,2692.5,3.2078]
[1727450671092,3.7136,2692.6,2692.5,3.2078]
[1727450671391,0.328713,2693.1,2692.5,3.2078]
[1727450671392,0.7658,2693.1,2692.5,3.2078]
[1727450671589,0.7658,2693.1,2692.6,0.37125]
[1727450671993,0.7658,2693.1,2692.5,3.2078]
[1727450672496,0.7658,2693.1,2693.0,3.2078]
[1727450672895,4.4794,2693.1,2693.0,3.2078]
[1727450673490,3.7136,2693.1,2693.0,3.2078]
[1727450673693,0.37114,2693.5,2693.0,3.2078]
[1727450673897,3.7128,2693.5,2693.0,3.2078]
[1727450674098,0.37115,2693.4,2693.0,3.2078]
[1727450674289,4.08394,2693.5,2693.0,3.2078]
[1727450674689,0.37115,2693.4,2693.0,3.2078]
[1727450675196,4.3358,2693.8,2693.0,3.2078]
[1727450675494,0.7658,2693.8,2693.5,0.37113]
[1727450675694,0.3844,2693.8,2693.3,3.2078]
[1727450675889,0.3844,2693.8,2693.6,0.37111]
[1727450676092,0.37106,2694.1,2693.7,0.3711]
[1727450676291,0.4015,2694.2,2693.9,3.57887]
[1727450676895,0.3741,2694.3,2694.0,0.37106]
[1727450677093,3.57878,2694.6,2693.9,3.2078]
[1727450677300,0.37099,2694.5,2694.1,0.37104]
[1727450677490,3.57,2694.5,2693.9,3.2078]
[1727450677702,0.37105,2694.1,2693.7,0.75189]
[1727450677902,0.37106,2694.0,2693.7,0.3808]
[1727450678204,0.37106,2694.1,2693.7,0.7519]
[1727450678495,0.37104,2694.2,2693.7,0.7519]
[1727450678695,0.7825,2694.7,2693.8,3.2078]
[1727450678893,1.15348,2694.7,2694.3,0.37102]
[1727450679091,3.2078,2694.8,2694.4,0.371]
[1727450679294,3.2078,2694.8,2694.5,0.37098]
[1727450679491,0.92735,2694.9,2694.2,0.3937]
[1727450679692,0.37098,2694.6,2694.2,0.76472]
[1727450680009,0.37097,2694.7,2694.3,0.37101]
[1727450680213,3.57,2695.1,2694.2,0.3937]
[1727450680499,0.37092,2695.0,2694.6,0.37097]
[1727450680709,0.37092,2695.0,2694.5,3.2078]
[1727450680710,0.37091,2695.1,2694.5,3.2078]
[1727450680901,3.2078,2695.2,2694.5,4.13529]
[1727450681099,3.2078,2695.2,2694.9,0.37093]
[1727450681507,0.37092,2695.1,2694.8,0.37094]
[1727450682007,3.2078,2695.2,2694.7,0.37096]
[1727450682008,0.37093,2695.0,2694.7,0.37096]
[1727450682597,0.37095,2694.9,2694.6,0.76907]
[1727450683212,3.2078,2695.2,2694.6,0.3981]
[1727450683401,0.37096,2694.7,2694.6,0.3981]
[1727450683806,0.37096,2694.8,2694.6,0.3981]
[1727450685510,3.2078,2694.9,2694.6,0.3981]
[1727450685702,0.37095,2694.8,2694.6,0.76907]
[1727450686300,0.37094,2694.9,2694.7,0.37096]
[1727450686510,0.37094,2694.9,2694.6,0.76907]
[1727450686902,0.37095,2694.8,2694.6,0.3981]
[1727450687102,3.2078,2695.0,2694.6,0.3981]
[1727450687506,0.37096,2694.8,2694.6,0.3981]
[1727450687708,0.37096,2694.8,2694.6,0.76908]
[1727450688007,3.2078,2695.0,2694.6,0.3981]
[1727450688008,0.37096,2694.7,2694.6,0.3981]
[1727450688309,0.37096,2694.8,2694.6,0.3981]
[1727450688510,0.37096,2694.7,2694.6,0.3981]
[1727450688803,0.37098,2694.6,2694.5,3.2078]
[1727450689009,0.37098,2694.6,2694.3,0.37102]
[1727450689198,0.37099,2694.5,2694.2,3.97252]
[1727450689712,0.92744,2694.7,2694.2,3.6015]
[1727450689914,0.37101,2694.4,2694.2,3.6015]
[1727450690106,0.37102,2694.3,2694.2,3.6015]
[1727450690303,0.37102,2694.3,2694.0,0.3919]
[1727450690503,1.30804,2694.7,2694.0,0.3919]
[1727450690504,0.37105,2694.2,2694.0,0.3919]
[1727450690708,0.37103,2694.3,2694.0,0.3919]
[1727450691009,0.92766,2694.0,2693.3,0.45815]
[1727450691215,0.37111,2693.7,2693.3,0.76705]
[1727450691415,3.2078,2693.8,2693.3,0.3959]
[1727450691601,0.37114,2693.4,2693.3,0.3959]
[1727450691801,0.37114,2693.4,2693.1,3.97618]
[1727450691802,0.37116,2693.3,2693.1,3.605]
[1727450692107,0.37116,2693.3,2693.0,0.37119]
[1727450693308,0.37118,2693.2,2692.8,0.3959]
[1727450693710,3.2078,2693.5,2692.8,0.3959]
[1727450693711,0.37117,2693.3,2692.9,0.37121]
[1727450693906,0.37117,2693.3,2692.8,0.3959]
[1727450693907,0.37121,2692.9,2692.8,0.3959]
[1727450694107,0.37121,2692.9,2692.5,0.76846]
[1727450694306,3.2078,2693.0,2692.5,0.76846]
[1727450694307,0.37124,2692.7,2692.5,0.3972]
[1727450695112,0.37124,2692.8,2692.5,0.3972]
[1727450695304,3.2078,2693.0,2692.5,0.3972]
[1727450695502,3.2078,2693.0,2691.9,3.2078]
[1727450695503,6.7778,2693.0,2691.9,3.2078]
[1727450695719,0.37126,2692.6,2692.3,0.37129]
[1727450695908,3.2078,2692.7,2692.3,0.37129]
[1727450695909,0.37127,2692.5,2692.3,0.37129]
[1727450696105,3.2078,2692.7,2692.3,0.37129]
[1727450696106,0.37126,2692.6,2692.3,0.37129]
[1727450696415,0.37129,2692.4,2692.1,0.37132]
[1727450696614,7.70602,2692.4,2691.8,0.37136]
[1727450696811,0.37135,2692.0,2691.7,0.37137]
[1727450697010,0.37135,2692.0,2691.8,0.37136]
[1727450697522,3.2078,2692.1,2691.5,4.3645]
[1727450697721,3.57913,2692.1,2691.8,0.37136]
[1727450697910,3.2078,2692.1,2691.9,0.37134]
[1727450698113,3.2078,2692.1,2692.0,0.37134]
[1727450698517,0.3713,2692.3,2692.0,0.37134]
[1727450698719,0.37129,2692.4,2692.1,0.37132]
[1727450699215,0.37131,2692.2,2692.0,0.37133]
[1727450700414,0.37129,2692.4,2691.7,0.92845]
[1727450700610,0.7804,2692.6,2691.8,3.2078]
[1727450700817,0.37129,2692.4,2692.2,0.37131]
[1727450701623,0.37132,2692.2,2692.0,0.37132]
[1727450702210,0.37134,2692.0,2691.8,0.37136]
[1727450703622,3.57913,2692.1,2691.9,0.37134]
[1727450703819,0.37134,2692.0,2691.8,0.37136]
[1727450704122,0.37136,2691.9,2691.7,0.37137]
[1727450704623,3.2078,2692.1,2691.5,0.7511]
[1727450704827,0.37135,2692.0,2691.8,0.37136]
[1727450705010,0.37135,2692.0,2691.5,0.7511]
[1727450705418,0.37135,2692.0,2691.8,0.37136]
[1727450705619,3.2078,2692.1,2691.5,0.7511]
[1727450705928,0.37137,2691.8,2691.5,0.7511]
[1727450706125,0.37139,2691.7,2691.4,0.37141]
[1727450706328,7.70624,2691.8,2691.2,0.37144]
[1727450706528,0.37142,2691.4,2691.2,0.37144]
[1727450706827,3.2078,2691.5,2691.0,0.7663]
[1727450707018,3.2078,2691.5,2690.7,3.2078]
[1727450707019,4.49856,2691.4,2690.7,3.2078]
[1727450707219,0.37148,2691.0,2690.7,0.3715]
[1727450707925,0.37148,2691.0,2690.8,0.3715]
[1727450708322,3.2078,2691.1,2690.7,0.37151]
[1727450708522,0.37148,2691.0,2690.7,0.37151]
[1727450708718,0.37151,2690.8,2690.6,0.3722]
[1727450708917,3.2078,2691.1,2690.7,0.37152]
[1727450709118,3.2078,2691.1,2690.6,0.3722]
[1727450709119,3.57,2691.0,2690.6,0.3722]
[1727450709320,3.2078,2690.8,2690.4,0.3941]
[1727450709517,0.37153,2690.6,2690.3,0.37157]
[1727450709724,0.37153,2690.6,2690.4,0.37156]
[1727450709923,0.37153,2690.6,2690.3,0.37156]
[1727450710129,0.37153,2690.6,2690.4,0.37156]
[1727450710325,0.37153,2690.6,2690.0,0.37161]
[1727450710326,0.37158,2690.3,2690.0,0.37161]
[1727450710535,0.9289,2690.4,2689.5,3.2078]
[1727450710717,3.57,2690.1,2689.5,3.2078]
[1727450711129,3.57,2689.8,2689.4,0.7786]
[1727450711317,0.92904,2690.0,2689.0,3.2078]
[1727450711318,6.7778,2689.5,2689.0,3.2078]
[1727450711517,7.70701,2689.5,2689.0,3.2078]
[1727450711718,0.37174,2689.1,2688.8,1.14597]
[1727450712218,0.37179,2688.7,2688.4,0.37182]
[1727450712532,0.92928,2689.4,2688.6,3.2078]
[1727450712533,3.57,2689.2,2688.6,3.2078]
[1727450712732,0.37172,2689.3,2689.0,0.37174]
[1727450712928,0.37172,2689.3,2688.6,3.2078]
[1727450713229,3.2078,2689.4,2689.0,0.37174]
[1727450713436,0.37173,2689.2,2689.0,0.37175]
[1727450713728,3.2078,2689.4,2689.0,0.37175]
[1727450713930,0.37173,2689.2,2688.9,0.37176]
[1727450714130,3.2078,2689.4,2688.6,3.2078]
[1727450714131,3.2078,2689.4,2689.0,0.37175]
[1727450714433,0.37172,2689.2,2689.0,0.37175]
[1727450714832,0.37174,2689.1,2688.9,0.37176]
[1727450715036,0.37174,2689.1,2688.6,3.2078]
[1727450715037,0.37175,2689.0,2688.8,0.37177]
[1727450715231,0.37177,2688.9,2688.7,0.37178]
[1727450715427,3.2078,2689.1,2688.7,0.37178]
[1727450715635,0.37177,2688.9,2688.3,3.2078]
[1727450715824,0.37173,2689.2,2689.0,0.37174]
[1727450716030,0.37171,2689.3,2689.1,0.37173]
[1727450716329,3.2078,2689.4,2688.9,0.37175]
[1727450716330,0.37174,2689.1,2688.9,0.37175]
[1727450716528,3.57954,2689.1,2688.9,0.37175]
[1727450716834,0.7728,2689.6,2689.0,3.7192]
[1727450717027,0.7728,2689.6,2688.7,0.92949]
[1727450717028,0.37171,2689.4,2688.7,0.92949]
[1727450717222,0.37172,2689.3,2688.8,0.75]
[1727450717534,0.37172,2689.3,2689.1,0.37173]
[1727450717919,0.37174,2689.1,2688.8,0.75]
[1727450718124,3.2078,2689.5,2689.3,0.37171]
[1727450718324,0.37168,2689.5,2689.3,0.37171]
[1727450718532,0.3717,2689.4,2688.8,3.9578]
[1727450718736,3.57949,2689.5,2689.2,0.37172]
[1727450718944,3.2078,2689.5,2689.4,0.3717]
[1727450719123,4.49909,2689.9,2689.5,0.37168]
[1727450719124,0.37166,2689.7,2689.5,0.37168]
[1727450719429,3.2078,2689.9,2689.3,3.2078]
[1727450719639,0.7586,2690.1,2689.3,4.13705]
[1727450719832,3.2078,2689.9,2689.3,4.13705]
[1727450720025,3.2078,2689.9,2689.8,0.37164]
[1727450720225,0.37163,2689.9,2689.7,0.37164]
[1727450720733,0.37171,2689.3,2689.1,0.37173]
[1727450721237,0.37171,2689.3,2689.1,4.09013]
[1727450721540,0.37171,2689.3,2689.1,3.7184]
[1727450721541,0.37172,2689.3,2689.1,3.7184]
[1727450721734,6.7778,2689.6,2688.9,0.37176]
[1727450721932,6.7778,2689.6,2688.8,0.75]
[1727450721933,0.37174,2689.1,2688.8,0.75]
[1727450722237,0.37175,2689.0,2688.8,1.12177]
[1727450722435,0.37175,2689.1,2688.8,1.12177]
[1727450722636,3.2078,2689.2,2688.8,0.75]
[1727450723040,7.14948,2689.6,2689.3,0.37171]
[1727450723240,7.14947,2689.6,2689.1,0.37173]
[1727450723735,3.2078,2689.6,2688.9,3.2078]
[1727450723935,3.2078,2689.6,2689.0,0.92938]
[1727450724144,3.2078,2689.6,2688.9,3.2078]
[1727450724145,3.2078,2689.6,2689.3,0.3717]
[1727450724337,3.57,2689.9,2689.4,0.37169]
[1727450724538,3.2078,2689.6,2689.4,0.37169]
[1727450724930,6.7778,2689.9,2689.6,0.37166]
[1727450725437,6.7778,2689.9,2689.2,3.2078]
[1727450725630,3.89592705,2689.9,2689.7,0.37165]
[1727450725942,3.89592705,2689.9,2689.8,0.37164]
[1727450726434,3.89592705,2689.9,2689.7,0.37165]
[1727450726636,7.10372705,2689.9,2689.5,0.37167]
[1727450726837,0.37169,2689.5,2688.9,3.2948]
[1727450727042,7.14947,2689.6,2689.2,0.37171]
[1727450727239,6.7778,2689.6,2689.0,0.37175]
[1727450727443,0.37171,2689.4,2688.9,3.57956]
[1727450727641,6.7778,2689.6,2688.9,3.2078]
[1727450727852,3.57,2689.3,2688.9,3.2078]
[1727450728142,3.57,2689.3,2689.0,0.37174]
[1727450729135,18.8717,2689.4,2688.9,3.2078]
[1727450729337,18.8717,2689.4,2689.0,0.37175]
[1727450729749,0.37172,2689.3,2688.9,3.57956]
[1727450729937,3.2078,2689.2,2688.9,0.37176]
[1727450730135,0.37172,2689.3,2688.9,0.37176]
[1727450730341,3.94171,2689.3,2688.9,0.37175]
[1727450731050,3.57,2689.3,2688.9,3.2078]
[1727450731346,0.3712,2689.5,2688.9,4.1372]
[1727450731538,0.3712,2689.5,2689.4,0.3717]
[1727450731733,0.32086423,2690.0,2689.3,0.92928]
[1727450731938,3.579,2690.1,2689.8,0.37163]
[1727450732136,0.3712,2690.1,2690.0,0.37161]
[1727450732448,0.3712,2690.1,2689.8,3.2078]
[1727450732449,0.71540397,2690.3,2690.1,0.37159]
[1727450732649,0.3844,2690.3,2689.8,3.2078]
[1727450732941,0.3844,2690.3,2690.1,0.37159]
[1727450734246,18.55546,2693.7,2690.5,0.37153]
[1727450734247,3.57,2690.9,2690.5,0.37153]
[1727450734451,3.94149,2690.9,2690.5,0.37153]
[1727450734851,3.57,2690.9,2690.5,0.37153]
[1727450735550,3.94149,2690.9,2690.5,0.37154]
[1727450736247,6.7778,2690.9,2690.5,0.37153]
[1727450736549,7.14929,2690.9,2690.5,0.37153]
[1727450736743,0.37151,2690.8,2690.2,0.4037]
[1727450737046,6.7778,2690.6,2689.8,3.2948]
[1727450737241,3.57,2690.6,2690.3,0.37156]
[1727450737444,3.57,2690.6,2690.4,0.37155]
[1727450737747,6.7778,2690.9,2690.7,0.37151]
[1727450738437,7.14929,2690.9,2690.1,3.6058]
[1727450738640,6.7778,2690.9,2690.5,0.37154]
[1727450738840,6.7778,2690.9,2690.6,0.37152]
[1727450739048,7.14929,2690.9,2690.1,4.53478]
[1727450739448,7.14929,2690.9,2690.6,0.37152]
[1727450739650,6.7778,2690.9,2690.6,0.37152]
[1727450740954,7.14929,2690.9,2690.6,0.37152]
[1727450741956,7.14929,2690.9,2690.7,0.37152]
[1727450742452,6.7778,2690.9,2690.7,0.37152]
[1727450742653,3.2078,2690.9,2690.8,0.3715]
[1727450742850,0.3844,2691.1,2690.9,0.37148]
[1727450743050,0.3844,2691.1,2690.4,3.2078]
[1727450743245,0.37152,2690.7,2690.5,0.37154]
[1727450743445,0.37152,2690.7,2689.9,1.69175]
[1727450743446,0.37156,2690.4,2690.2,0.37158]
[1727450743648,0.37157,2690.4,2690.2,0.37158]
[1727450743847,0.37155,2690.5,2690.3,0.37157]
[1727450744352,0.37159,2690.2,2690.0,0.37161]
[1727450744858,0.7553,2690.4,2690.3,0.37157]
[1727450745847,0.92876,2690.8,2690.4,0.37155]
[1727450746056,0.37152,2690.7,2690.5,0.37153]
[1727450746641,0.37153,2690.6,2690.4,0.37155]
[1727450746859,0.37154,2690.6,2690.4,0.37155]
[1727450747154,1.1268,2690.8,2690.2,0.92896]
[1727450747350,1.1268,2690.8,2690.1,3.2078]
[1727450747351,3.2078,2690.9,2690.8,0.3715]
[1727450747555,3.57,2691.2,2691.0,0.37147]
[1727450747556,3.2078,2691.1,2691.0,0.37147]
[1727450748948,3.57927,2691.1,2690.9,0.37148]
[1727450749153,0.92874,2690.9,2690.2,0.92897]
[1727450749357,4.13647,2691.1,2690.2,0.92897]
[1727450749358,3.2078,2690.8,2690.7,0.37152]
[1727450750455,3.57,2691.1,2690.6,0.92882]
[1727450750456,7.14926,2691.1,2690.6,0.92882]
[1727450750658,3.2078,2691.1,2691.0,0.37147]
[1727450751853,0.37148,2691.0,2690.7,0.3906]
[1727450752163,7.70647,2691.1,2690.4,3.2078]
[1727450752360,0.37151,2690.8,2690.6,0.37152]
[1727450752660,0.37153,2690.6,2690.4,0.37155]
[1727450752849,6.7778,2690.8,2690.1,4.92519]